Workbook

Sheet Лист1
A1: Школа | C1: МКОУ "Косякинская СОШ" | F1: Утвердил: | G1: должность | H1: Директор
A2: Типовое примерное меню приготавливаемых блюд | G2: фамилия | H2: Алиев Ахмед Наннаевич
A3: Возрастная категория | E3: 7-11 лет | G3: дата | H3: 1 | I3: 10 | J3: 2023
H4: день | I4: месяц | J4: год
A5: Неделя | B5: День недели | C5: Прием пищи | D5: Раздел меню | E5: Блюда | F5: Вес блюда, г | G5: Белки | H5: Жиры | I5: Углеводы | J5: Калорийность | K5: № рецептуры | L5: Цена
A6: 1 | B6: 1
A15: =A6 -> 1 | B15: =B6 -> 1 | C15: Обед | D15: закуска
D16: 1 блюдо | E16: Борщ с капустой и картофелем | F16: 200 | G16: 1.45 | H16: 12.85 | I16: 21.2 | J16: 184.3 | K16: 27 | L16: 16.383
D17: 2 блюдо | E17: Каша ячневая рассыпчатая | F17: 120 | G17: 6.03 | H17: 4.53 | I17: 28.94 | J17: 186.29 | K17: 9 | L17: 38.617
D18: гарнир | E18: Люля | F18: 45 | G18: 7 | H18: 6.55 | I18: 7.07 | J18: 102.94 | K18: 2 | L18: 1.71
D19: напиток | E19: Чай с сахаром | F19: 200 | G19: 0 | H19: 0 | I19: 13.45 | J19: 28 | K19: 20 | L19: 2.32
D20: хлеб бел. | E20: Хлеб пшеничный | F20: 40 | G20: 3.92 | H20: 0.48 | I20: 19.88 | J20: 152.32 | L20: 9
E21: Яблоки | F21: 100 | G21: 0.55 | H21: 0.55 | I21: 13.64 | J21: 40.92 | K21: 50 | L21: 3.68
E23: Печенье | F23: 16 | G23: 1.1 | H23: 0.75 | I23: 10 | J23: 20.65
D24: итого | F24: =SUM(F15:F23) -> 721 | G24: =SUM(G15:G23) -> 20.05 | H24: =SUM(H15:H23) -> 25.71 | I24: =SUM(I15:I23) -> 114.18 | J24: =SUM(J15:J23) -> 715.42 | L24: =SUM(L15:L23) -> 71.71
A25: =A6 -> 1 | B25: =B6 -> 1 | C25: Итого за день: | F25: =F14+F24 -> 721 | G25: =G14+G24 -> 20.05 | H25: =H14+H24 -> 25.71 | I25: =I14+I24 -> 114.18 | J25: =J14+J24 -> 715.42 | L25: =L14+L24 -> 71.71
A26: 1 | B26: 2
A33: =A26 -> 1 | B33: =B26 -> 2 | C33: Обед | D33: закуска
D34: 1 блюдо | E34: Суп гороховый вегит. | F34: 200 | G34: 2.9 | H34: 2.95 | I34: 8.06 | J34: 109.66 | K34: 56 | L34: 3.9874
D35: 2 блюдо | E35: Пюре картофельное | F35: 140 | G35: 6.43 | H35: 11.85 | I35: 56.19 | J35: 233.35 | K35: 39 | L35: 41.594
D36: гарнир | E36: Люля | F36: 45 | G36: 7 | H36: 6.55 | I36: 7.07 | J36: 102.94 | K36: 2
D37: напиток | E37: Чай с сахаром | F37: 200 | G37: 0 | H37: 0 | I37: 13.45 | J37: 28 | L37: 1.71
D38: хлеб бел. | E38: Хлеб пшеничный | F38: 40 | G38: 3.92 | H38: 0.48 | I38: 19.88 | J38: 152.32 | L38: 2.32
E39: Яблоки | F39: 90 | G39: 0.5 | H39: 0.5 | I39: 12.28 | J39: 36.83 | K39: 50 | L39: 8.1
E40: Кексы | F40: 33.33 | G40: 0.1 | H40: 0.38 | I40: 6.01 | J40: 8.4 | L40: 13.9986
D41: итого | F41: =SUM(F33:F40) -> 748.33 | G41: =SUM(G33:G40) -> 20.85 | H41: =SUM(H33:H40) -> 22.71 | I41: =SUM(I33:I40) -> 122.94 | J41: =SUM(J33:J40) -> 671.5 | L41: =SUM(L33:L40) -> 71.71
A42: =A26 -> 1 | B42: =B26 -> 2 | C42: Итого за день: | F42: =F32+F41 -> 748.33 | G42: =G32+G41 -> 20.85 | H42: =H32+H41 -> 22.71 | I42: =I32+I41 -> 122.94 | J42: =J32+J41 -> 671.5 | L42: =L32+L41 -> 71.71
A43: 1 | B43: 3
A51: =A43 -> 1 | B51: =B43 -> 3 | C51: Обед | D51: закуска
D52: 1 блюдо | E52: Щи из капусты с курицей | F52: 250 | G52: 2 | H52: 5 | I52: 11 | J52: 100 | K52: 54 | L52: 16.497
D53: 2 блюдо | E53: Макароны отварные | F53: 125 | G53: 5.52 | H53: 4.52 | I53: 26.45 | J53: 132.5 | K53: 10 | L53: 38.351
D54: гарнир | E54: Тефтели | F54: 45 | G54: 7.78 | H54: 7.21 | I54: 7.85 | J54: 114.38 | K54: 7
D55: напиток | E55: Чай с сахаром | F55: 200 | G55: 0 | H55: 0 | I55: 13.45 | J55: 28 | K55: 20 | L55: 1.862
D56: хлеб бел. | E56: Хлеб пшеничный | F56: 40 | G56: 3.92 | H56: 0.48 | I56: 19.88 | J56: 152.32 | L56: 2.32
E57: Печенье | F57: 16 | G57: 1.1 | H57: 0.75 | I57: 10 | J57: 20.65 | L57: 3.68
E58: Яблоки | F58: 100 | G58: 0.55 | H58: 0.55 | I58: 13.64 | J58: 40.92 | K58: 50 | L58: 9
D59: итого | F59: =SUM(F51:F58) -> 776 | G59: =SUM(G51:G58) -> 20.87 | H59: =SUM(H51:H58) -> 18.51 | I59: =SUM(I51:I58) -> 102.27 | J59: =SUM(J51:J58) -> 588.77 | L59: =SUM(L51:L58) -> 71.71
A60: =A43 -> 1 | B60: =B43 -> 3 | C60: Итого за день: | F60: =F50+F59 -> 776 | G60: =G50+G59 -> 20.87 | H60: =H50+H59 -> 18.51 | I60: =I50+I59 -> 102.27 | J60: =J50+J59 -> 588.77 | L60: =L50+L59 -> 71.71
A61: 1 | B61: 4
A69: =A61 -> 1 | B69: =B61 -> 4 | C69: Обед | D69: закуска | E69: Йогурт | F69: 115 | G69: 4.33 | H69: 2.01 | I69: 11.98 | J69: 60.5 | L69: 32.2
D70: 1 блюдо | E70: Вареник со сметаной | F70: 100 | G70: 9.41 | H70: 8.93 | I70: 14.48 | J70: 237.25 | K70: 42 | L70: 21.66
E71: Сметана | F71: 5 | G71: 0.25 | H71: 1.88 | I71: 0.3 | J71: 19.36
D72: напиток | E72: Чай с сахаром | F72: 200 | G72: 0 | H72: 0 | I72: 13.45 | J72: 28 | L72: 1.71
D73: хлеб бел. | E73: Хлеб пшеничный | F73: 40 | G73: 3.92 | H73: 0.48 | I73: 19.88 | J73: 152.32 | L73: 2.32
E74: Яблоки | F74: 98 | G74: 0.54 | H74: 0.54 | I74: 13.37 | J74: 40.1 | K74: 50 | L74: 8.82
E75: Вафли | F75: 20 | G75: 0.82 | H75: 5.4 | I75: 12 | J75: 61.25 | L75: 5
D76: итого | F76: =SUM(F69:F75) -> 578 | G76: =SUM(G69:G75) -> 19.27 | H76: =SUM(H69:H75) -> 19.24 | I76: =SUM(I69:I75) -> 85.46 | J76: =SUM(J69:J75) -> 598.78 | L76: =SUM(L69:L75) -> 71.71
A77: =A61 -> 1 | B77: =B61 -> 4 | C77: Итого за день: | F77: =F68+F76 -> 578 | G77: =G68+G76 -> 19.27 | H77: =H68+H76 -> 19.24 | I77: =I68+I76 -> 85.46 | J77: =J68+J76 -> 598.78 | L77: =L68+L76 -> 71.71
A78: 1 | B78: 5
A87: =A78 -> 1 | B87: =B78 -> 5 | C87: Обед | D87: закуска
D88: 1 блюдо | E88: Суп харчо с курицей | F88: 200 | G88: 6.89 | H88: 1.9 | I88: 6.58 | J88: 85.79 | K88: 36 | L88: 13.48
D89: 2 блюдо | E89: Макароны отварные | F89: 125 | G89: 5.52 | H89: 4.52 | I89: 26.45 | J89: 132.5 | K89: 10 | L89: 31.2014
D90: гарнир | E90: Котлета куриная | F90: 45 | G90: 12.15 | H90: 10.15 | I90: 10.44 | J90: 108 | K90: 44
D91: напиток | E91: Чай с сахаром | F91: 200 | G91: 0 | H91: 0 | I91: 13.45 | J91: 28 | K91: 20 | L91: 1.71
D92: хлеб бел. | E92: Хлеб пшеничный | F92: 40 | G92: 3.92 | H92: 0.48 | I92: 19.88 | J92: 152.32 | L92: 2.32
E93: Яблоки | F93: 100 | G93: 0.55 | H93: 0.55 | I93: 13.64 | J93: 40.92 | K93: 50 | L93: 9
E94: Кексы | F94: 33.33 | G94: 0.1 | H94: 0.38 | I94: 6.01 | J94: 8.4 | L94: 13.9986
D95: итого | F95: =SUM(F87:F94) -> 743.33 | G95: =SUM(G87:G94) -> 29.13 | H95: =SUM(H87:H94) -> 17.98 | I95: =SUM(I87:I94) -> 96.45 | J95: =SUM(J87:J94) -> 555.93 | L95: =SUM(L87:L94) -> 71.71
A96: =A61 -> 1 | B96: 5 | C96: Итого за день: | F96: =F68+F76 -> 578 | G96: =G68+G76 -> 19.27 | H96: =H68+H76 -> 19.24 | I96: =I68+I76 -> 85.46 | J96: =J68+J76 -> 598.78 | L96: =L68+L76 -> 71.71
A97: 1 | B97: 6
A105: 1 | B105: =B97 -> 6 | C105: Обед | D105: закуска
D106: 1 блюдо | E106: Суп молочный с рисом | F106: 200 | G106: 4.82 | H106: 3.21 | I106: 30.11 | J106: 132.4 | K106: 35 | L106: 11.793
D107: 2 блюдо | E107: Каша пшеничная рассыпчатая | F107: 120 | G107: 5.38 | H107: 4.67 | I107: 8.05 | J107: 174.3 | K107: 9 | L107: 32.8884
D108: гарнир | E108: Котлета куриная | F108: 45 | G108: 7 | H108: 5.2 | I108: 7.07 | J108: 102.94 | K108: 2
D109: напиток | E109: Чай с сахаром | F109: 200 | G109: 0 | H109: 0 | I109: 13.45 | J109: 28 | K109: 20 | L109: 1.71
D110: хлеб бел. | E110: Хлеб пшеничный | F110: 40 | G110: 3.92 | H110: 0.48 | I110: 19.88 | J110: 152.32 | L110: 2.32
E111: Кексы | F111: 33.33 | G111: 0.1 | H111: 0.38 | I111: 6.01 | J111: 8.4 | L111: 13.9986
E112: Яблоки | F112: 100 | G112: 0.55 | H112: 0.55 | I112: 13.64 | J112: 40.92 | K112: 50 | L112: 9
D113: итого | F113: =SUM(F105:F112) -> 738.33 | G113: =SUM(G105:G112) -> 21.77 | H113: =SUM(H105:H112) -> 14.49 | I113: =SUM(I105:I112) -> 98.21 | J113: =SUM(J105:J112) -> 639.28 | L113: =SUM(L105:L112) -> 71.71
A114: =A78 -> 1 | B114: 6 | C114: Итого за день: | F114: =F86+F95 -> 743.33 | G114: =G86+G95 -> 29.13 | H114: =H86+H95 -> 17.98 | I114: =I86+I95 -> 96.45 | J114: =J86+J95 -> 555.93 | L114: =L86+L95 -> 71.71
A115: 2 | B115: 7
A122: =A115 -> 2 | B122: =B115 -> 7 | C122: Обед | D122: закуска
D123: 1 блюдо | E123: Борщ с капустой и картофелем | F123: 200 | G123: 1.45 | H123: 12.85 | I123: 21.2 | J123: 184.3 | K123: 27 | L123: 6.0505
D124: 2 блюдо | E124: Каша ячневая рассыпчатая | F124: 120 | G124: 6.03 | H124: 4.53 | I124: 28.94 | J124: 186.29 | K124: 9 | L124: 38.5795
D125: гарнир | E125: Котлета говяжья | F125: 45 | G125: 7 | H125: 6.55 | I125: 7.07 | J125: 102.94 | K125: 2
D126: напиток | E126: Сок осветленный | F126: 196 | G126: 1.04 | H126: 0 | I126: 12.57 | J126: 83.41 | K126: 49 | L126: 16.66
D127: хлеб бел. | E127: Хлеб пшеничный | F127: 40 | G127: 3.92 | H127: 0.48 | I127: 19.88 | J127: 152.32 | L127: 2.32
E128: Яблоки | F128: 90 | G128: 0.5 | H128: 0.5 | I128: 12.28 | J128: 36.83 | K128: 50 | L128: 8.1
E129: Масло сливочное | F129: 3.5 | G129: 0.05 | H129: 4.11 | I129: 0.58 | J129: 0
E130: Сметана | F130: 2 | G130: 0.06 | H130: 0.46 | I130: 0.07 | J130: 4.79
D131: итого | F131: =SUM(F122:F130) -> 696.5 | G131: =SUM(G122:G130) -> 20.05 | H131: 29.48 | I131: 102.59 | J131: 750.88 | L131: =SUM(L122:L130) -> 71.71
A132: =A115 -> 2 | B132: 7 | C132: Итого за день: | F132: =F121+F131 -> 696.5 | G132: =G121+G131 -> 20.05 | H132: =H121+H131 -> 29.48 | I132: =I121+I131 -> 102.59 | J132: =J121+J131 -> 750.88 | L132: =L121+L131 -> 71.71
A133: 2 | B133: 8
A141: =A133 -> 2 | B141: =B133 -> 8 | C141: Обед | D141: закуска
D142: 1 блюдо | E142: Суп молочный с рисом | F142: 200 | G142: 4.82 | H142: 3.21 | I142: 30.11 | J142: 132.4 | K142: 35 | L142: 14.449
D143: 2 блюдо | E143: Каша пшеничная рассыпчатая | F143: 120 | G143: 5.38 | H143: 4.67 | I143: 8.05 | J143: 174.3 | K143: 9 | L143: 39.231
D144: гарнир | E144: Тефтели | F144: 45 | G144: 7.78 | H144: 7.21 | I144: 7.85 | J144: 114.38 | K144: 7
D145: напиток | E145: Чай с сахаром | F145: 200 | G145: 0 | H145: 0 | I145: 13.45 | J145: 28 | K145: 20 | L145: 1.71
D146: хлеб бел. | E146: Хлеб пшеничный | F146: 40 | G146: 3.92 | H146: 0.48 | I146: 19.88 | J146: 152.32 | L146: 2.32
E147: Мини рулеты (бисквитные) | F147: 35 | G147: 1.4 | H147: 6.65 | I147: 19.95 | J147: 147 | L147: 5
E148: Яблоки | F148: 100 | G148: 0.55 | H148: 0.55 | I148: 13.64 | J148: 40.92 | L148: 9
D150: итого | F150: =SUM(F141:F149) -> 740 | G150: =SUM(G141:G149) -> 23.85 | H150: 22.77 | I150: 112.93 | J150: 789.32 | L150: =SUM(L141:L149) -> 71.71
A151: =A133 -> 2 | B151: 8 | C151: Итого за день: | F151: =F140+F150 -> 740 | G151: =G140+G150 -> 23.85 | H151: =H140+H150 -> 22.77 | I151: =I140+I150 -> 112.93 | J151: =J140+J150 -> 789.32 | L151: 71.71
A152: 2 | B152: 9
A160: =A152 -> 2 | B160: =B152 -> 9 | C160: Обед | D160: закуска
D161: 1 блюдо | E161: Суп картофельный с курицей | F161: 200 | G161: 2.42 | H161: 1.9 | I161: 5.21 | J161: 96.95 | K161: 33 | L161: 14.087
D162: 2 блюдо | E162: Гуляш из грудки курицы | F162: 79 | G162: 9.23 | H162: 8.77 | I162: 14.21 | J162: 232.85 | K162: 46 | L162: 18.383
D163: гарнир | E163: Каша гречневая расыпчатая | F163: 126 | G163: 11.44 | H163: 2.66 | I163: 8.98 | J163: 168.35 | K163: 9 | L163: 5.92
D164: напиток | E164: Сок осветленный | F164: 200 | G164: 1.06 | H164: 0 | I164: 12.83 | J164: 85.11 | K164: 49 | L164: 17
D165: хлеб бел. | E165: Хлеб пшеничный | F165: 40 | G165: 3.92 | H165: 0.48 | I165: 19.88 | J165: 152.32 | L165: 2.32
E166: Яблоки | F166: 100 | G166: 0.55 | H166: 0.55 | I166: 13.64 | J166: 40.92 | K166: 50 | L166: 9
E167: Вафли | F167: 20 | G167: 0.82 | H167: 5.4 | I167: 12 | J167: 61.25 | L167: 5
D168: итого | F168: =SUM(F160:F167) -> 765 | G168: =SUM(G160:G167) -> 29.44 | H168: =SUM(H160:H167) -> 19.76 | I168: =SUM(I160:I167) -> 86.75 | J168: =SUM(J160:J167) -> 837.75 | L168: =SUM(L160:L167) -> 71.71
A169: =A152 -> 2 | B169: 9 | C169: Итого за день: | F169: =F159+F168 -> 765 | G169: =G159+G168 -> 29.44 | H169: =H159+H168 -> 19.76 | I169: =I159+I168 -> 86.75 | J169: =J159+J168 -> 837.75 | L169: =L159+L168 -> 71.71
A177: =A170 -> 0 | B177: =B170 -> 0 | C177: Обед | D177: закуска
D178: 1 блюдо | E178: Суп гороховый с курицей | F178: 200 | G178: 5.06 | H178: 0.64 | I178: 22.06 | J178: 108.68 | K178: 40 | L178: 5.116
D179: 2 блюдо | E179: Вареники | F179: 100 | G179: 9.23 | H179: 8.77 | I179: 14.21 | J179: 232.85 | K179: 42 | L179: 21.749
D180: гарнир | E180: Сметана | F180: 6 | G180: 0.26 | H180: 1.88 | I180: 0.3 | J180: 19.39
D181: напиток | E181: Сок осветленный | F181: 195 | G181: 1.03 | H181: 0 | I181: 12.51 | J181: 82.98 | K181: 49 | L181: 16.575
D182: хлеб бел. | E182: Хлеб пшеничный | F182: 40 | G182: 3.92 | H182: 0.48 | I182: 19.88 | J182: 152.32 | L182: 2.32
E183: Мини рулеты (бисквитные) | F183: 35 | G183: 1.4 | H183: 6.65 | I183: 19.95 | J183: 147 | L183: 17.85
E184: Яблоки | F184: 90 | G184: 0.5 | H184: 0.5 | I184: 12.28 | J184: 36.83 | K184: 50 | L184: 8.1
D185: итого | F185: =SUM(F177:F184) -> 666 | G185: =SUM(G177:G184) -> 21.4 | H185: =SUM(H177:H184) -> 18.92 | I185: =SUM(I177:I184) -> 101.19 | J185: =SUM(J177:J184) -> 780.05 | L185: =SUM(L177:L184) -> 71.71
A186: =A170 -> 0 | B186: 10 | C186: Итого за день: | F186: =F176+F185 -> 666 | G186: =G176+G185 -> 21.4 | H186: =H176+H185 -> 18.92 | I186: =I176+I185 -> 101.19 | J186: =J176+J185 -> 780.05 | L186: =L176+L185 -> 71.71
A187: 2 | C187: Среднее значение за период: | F187: =F16+F34+F52+F70+F88+F106+F123+F142+F161+F178 -> 1950 | G187: =(G43+G61+G78+G97+G133+G152+G170)/(IF(G43=0,0,1)+IF(G61=0,0,1)+IF(G78=0,0,1)+IF(G97=0,0,1)+IF(G133=0,0,1)+IF(G152=0,0,1)+IF(G170=0,0,1)) ->  | H187: =(H43+H61+H78+H97+H133+H152+H170)/(IF(H43=0,0,1)+IF(H61=0,0,1)+IF(H78=0,0,1)+IF(H97=0,0,1)+IF(H133=0,0,1)+IF(H152=0,0,1)+IF(H170=0,0,1)) ->  | I187: =(I43+I61+I78+I97+I133+I152+I170)/(IF(I43=0,0,1)+IF(I61=0,0,1)+IF(I78=0,0,1)+IF(I97=0,0,1)+IF(I133=0,0,1)+IF(I152=0,0,1)+IF(I170=0,0,1)) ->  | J187: =(J43+J61+J78+J97+J133+J152+J170)/(IF(J43=0,0,1)+IF(J61=0,0,1)+IF(J78=0,0,1)+IF(J97=0,0,1)+IF(J133=0,0,1)+IF(J152=0,0,1)+IF(J170=0,0,1)) ->  | L187: =(L43+L61+L78+L97+L133+L152+L170)/(IF(L43=0,0,1)+IF(L61=0,0,1)+IF(L78=0,0,1)+IF(L97=0,0,1)+IF(L133=0,0,1)+IF(L152=0,0,1)+IF(L170=0,0,1)) -> 
